{"text_format":"1","workbook":"xlsx","n_sheets":7,"sheets":["Présentation du dossier","Administratif","Secteurs","Competences généralistes","Competences par secteur","Expériences","Synthèse"],"not_rendered":{"charts":1,"images":23,"macros":1,"external_links":0,"defined_names":8,"comments":0,"pivot_tables":0},"unopened":[],"bounds":{"document_bytes":16777216,"sheet_cells":100000,"rows_first":2000,"rows_last":500,"rows_between":2000,"halvings":0,"cell_chars":16384,"cell_head_chars":4096},"cells_cut":0,"cells_raw":0,"read":"whole","date_system":"1900"}

{"sheet":"Présentation du dossier","index":0,"n_rows":27,"n_cols":1,"rows_kept":27,"cut":false,"hidden":false,"merged":[[26,0,26,6],[20,0,20,6],[24,0,24,6],[15,0,15,5],[5,0,5,6],[7,0,7,1],[9,0,9,6],[14,0,14,6],[19,0,19,6],[18,0,18,1]]}
[]
[]
[]
[]
[]
["Dossier de référencement régional des prestataires"]
[]
["Constitution du dossier de référencement des prestataires DLA"]
[]
["Merci de joindre au présent dossier les pièces administratives et éléments justificatifs suivants :\n- CV(s) des personnes susceptibles d'être mobilisées sur les missions DLA\n- Tout élément de communication (plaquette, etc.)\n- La Charte des prestataires signée\n"]
[]
["Rubrique du dossier"]
[]
["Ce dossier se compose :"]
["- d'une partie administrative précisant différents champs administratifs du prestataire"]
[" - d'une partie secteurs d'activité sur lesquels le prestataire peut intervenir - via une autoévaluation"]
["- d'une partie compétences généralistes précisant les compétences techniques et thématiques sur lesquelles le prestataire intervient - via une autoévaluation"]
["- d'une partie compétences par secteurs, précisant les compétences techniques et thématiques pour chaque secteur d'intervention"]
["- d'une partie expériences du prestaire"]
["- d'une partie synthèse reprenant les parties compétences et secteurs d'activités\n          "]
[]
[]
["Autre source d'information sur le DLA"]
[]
["- Info DLA"]
[]
[" ©BGE AURA "]

{"sheet":"Administratif","index":1,"n_rows":45,"n_cols":7,"rows_kept":45,"cut":false,"hidden":false,"merged":[[18,0,18,3],[3,0,3,3],[41,2,41,3],[41,0,41,1]]}
[]
[]
[]
["Présentation générale"]
[]
[]
["Nom / Prénom :"]
[]
["Fonction :"]
[]
["Téléphone :"]
[]
["Email : "]
["Solidarité internationale"]
["Sport"]
["Tourisme social"]
["Autres",null,null,null,null,null,"Ain"]
[]
["Identité de votre structure "]
["Raison sociale (Nom long)",null,"Forme juridique/statuts"]
["Raison sociale (Nom court)",null,"N°SIRET",null,null,null,"Toute la région Auvergne-Rhône-Alpes"]
["Adresse",null,"Code NAF / APE",null,null,null,"Ain"]
["Code Postal",null,"Date de création",null,null,null,"Allier"]
["Ville",null,"Etes-vous un organisme de formation ?",null,null,null,"Ardèche"]
["Département",null,"Si oui, êtes vous référencés Datadock?",null,null,null,"Cantal"]
["Mail",null,"Site Internet",null,null,null,"Drôme"]
["Téléphone",null,null,null,null,null,"Haute-Loire"]
["Territoire(s) d'intervention : cliquer sur \"Select Options\" ci-dessous : ",null,"Forme(s) d'accompagnement","Les deux ",null,null,"Haute-Savoie"]
["Territoire(s) d'intervention","",null,null,null,null,"Isère"]
[null,null,null,null,null,null,"Loire"]
[null,null,null,null,null,null,"Puy-de-Dôme"]
[null,null,null,null,null,null,"Rhône"]
[null,null,null,null,null,null,"Savoie"]
["Nom des intervenants\nMerci de joindre le CV correspondant","Fonction","Mail","Téléphone"]
[]
[]
[]
[]
[]
[]
[]
["Nombre de salariés de la structure",null,"Coût journalier pratiqué"]
["Nombre d'ETP",null,"Coût fixe à la journée (TTC)","       E/j"]
[" - dont CDD",null,"Variable selon les missions (TTC)","de  à   /j"]
[" - dont CDI",null,"TVA"]

{"sheet":"Secteurs","index":2,"n_rows":29,"n_cols":6,"rows_kept":29,"cut":false,"hidden":false,"merged":[[8,4,8,5],[6,4,6,5]]}
[]
[]
[]
[]
[]
[]
[null,null,null,null,"Ma grille d'analyse de mes secteurs d'activités"]
[]
[null,null,null,null,"Les secteurs d'activités "]
[null,null,null,null,"Accompagnement des entreprises","Activités de création et développement de l'activité, soutien administratif des entreprises, services aux entreprises …"]
[null,null,null,null,"Agriculture et alimentation durables","Sensibilisation, formation, accès au foncier, accompagnement à l'installation, production, transformation, distribution et vente, agriculture urbaine, renaturation urbaine"]
[null,null,null,null,"Culture, art et patrimoine","Libraire ou disquaire associatif, association d'artisanat d'art, biliothèque, médiathèque, archives, maison d'édition d'œuvres littéraires, ludothèque, studios, salle de concert, agence culturelle départementale ou régionale, centre de ressources, label indépendant de musique, agence artistique, promotionnelle ou publicitaire, cinéma, musée, monument historique, site archéologique ou patrimonial, théâtre, centre culturel, galerie, salle d'exposition d'arts visuels, fabrique artistique, lieu intermédiaire, tiers lieu culturel, association de sensibilisation, d'action culturelle, groupepement, fédération, média associatif, lieu de diffusion polyvalent, centre d'animation socio-culturel, association organisatrice d'évènements sans lieu fixe, bureau de production, prestataire de services administratifs et techniques, festival, association de conversation et valorisation du patrimoine, école, structure d'enseignement artistique, compagnie de spectacle vivant, collectif artistique, ensemble ou groupe de musique"]
[null,null,null,null,"Economie circulaire","Sensibilisation à la prévention, formation à la gestion des déchêts, collecte de déchêts, réparation, réemploi-réutilisation, valorisation matière, recyclage, surcyclage, économie de la fonctionnalité, mise à disposition d'équipements"]
[null,null,null,null,"Emploi","Activités d'accompagnement vers l'emploi, coaching, levée des freins périphériques d'accès à l'emploi (comme la mobilité) …"]
[null,null,null,null,"Energie","Sensibilisation, accompagnement, conseil à la sobriété/efficacité énergétique, production d'énergies renouvelables, distribution"]
[null,null,null,null,"Enfance, familles, jeunesses","Crèche, accueil d'enfants de moins de 3 ans, action socio-éducative, loisirs-jeunesse (ALSH, centres de vacances, etc.), protection de l'enfance, prévention jeunes et spécialisée, famille, médiation familiale, soutien à la parentalité, réseau, fédération enfances-familles-jeunesses"]
[null,null,null,null,"Enseignement, Education","Activités scolaires et péri-scolaires (aide à la scolarité), soutien à l'enseignement, promotion de l'accès à l'éducation …"]
[null,null,null,null,"Formation","Activités d'organisme de formation, de formation pour adultes …"]
[null,null,null,null,"Gestion et protection de l'environnement","Protection de l'environnement, éducation à l'environnement, plaidoyer et mobilisation citoyenne"]
[null,null,null,null,"Gestion de l'eau","Sensibilisation, accompagnement, conseil à la gestion de la ressource"]
[null,null,null,null,"Habitat durable","Production et vente de matériaux biosourcés/géosourcés, rénovation thermique du bâti, déconstruction sélective pour le réemploi"]
[null,null,null,null,"Handicap et vieillissement","Services à domicile avec et sans agrément, services autonomie à domicile (SAD, SAAD, SSIAD, SPASAD), ESSMS handicap enfant, ESSMS handicap adulte, établissement et service d'aide par le travail (ESAT), entreprise adaptée, groupe d'entraide mutuelle (GEM), ESSMS pour personnes âgées, EHPAD, résidences autonomie, EHPA, MARPA, habitat inclusif, habitat accompagné, partagé et inséré (API), service/plateforme d'aide et de répit aux aidants, action socio-culturelle, socio-sportive, loisirs pour personnes âgées ou personnes handicapées, réseau, fédération pour personnes handicapées ou âgées, autres actions sur le handicap et le vieillissement"]
[null,null,null,null,"Lutte contre les exclusions","Veille sociale (SIAO, maraudes, équipes mobiles, accueil de jour), centre d'hébergement et de réinsertion sociale (CHRS), centre d'hébergement d'urgence, accueil et aide aux réfugiés, demandeurs d'asile et personnes migrantes, logement accompagné jeunes - Foyer jeunes travailleurs, logement accompagné : résidence sociale, pension de famille, intermédiation locative, accompagnement vers et dans l'emploi (Mission Locale, Cap emploi, etc.), dispositifs d'embauche pour personnes éloignées de l'emploi, solidarité alimentation (banque alimentaire, épicerie solidaire, etc.), défense des droits, accès aux droits, droits des femmes, centre social, espace de vie sociale, réseau, fédération de lutte contre les exclusions, autre action de lutte contre les exclusions"]
[null,null,null,null,"Mobilité durable","Sensibilisation, promotion, accompagnement à la mobilité durable, mobilité partagée, auto-partage, cyclo-mobilités, apprentissage à la pratique du vélo"]
[null,null,null,null,"Numérique","Activités d'accompagnement informatique, développement web, NTIC …"]
[null,null,null,null,"Santé","Centre de santé, établissement sanitaire, réseau de santé, prévention-promotion de la santé, association de patients, planification familiale, santé sexuelle, autres structures de santé (santé mentale, tiers-lieu en santé, innovation en santé)"]
[null,null,null,null,"Solidarité internationale","Activités à destination de pays étrangers"]
[null,null,null,null,"Sport","Activités liées au sport"]
[null,null,null,null,"Tourisme et écotourisme","Activités d'hébergement (hôtellerie), restauration, transport, écotourisme et patrimoine…"]

{"sheet":"Competences généralistes","index":3,"n_rows":63,"n_cols":11,"rows_kept":63,"cut":false,"hidden":false,"merged":[[24,4,24,6],[29,4,29,5],[32,4,32,6],[37,4,37,5],[8,4,8,6],[13,4,13,5],[16,4,16,6],[21,4,21,5],[62,4,62,6],[63,4,64,6],[59,4,59,5],[40,4,40,6],[45,4,45,5],[48,4,48,6],[52,4,52,5],[55,4,55,6]]}
[]
[]
[]
[]
[]
[]
[null,null,null,null,null,"Ma grille d'analyse de mes compétences",null,null,null,null,"Ma grille de lecture"]
[]
[null,null,null,null,"Stratégie économique et financière"]
[null,null,null,null,"Maîtrise de la comptabilité analytique","Maîtriser la lecture et l'analyse des documents comptables et financiers",null,null,null,0,"Compétence non développée"]
[null,null,null,null,"Restructuration économique et financière","Maîtriser et analyser le modèle économique et financier associatif et/ou coopératif - Connaître les différentes typologies des modèles de ressources financières (humaines, activités, financements publics et privés)",null,null,null,1,"Compétence peu développée"]
[null,null,null,null,"Elaboration d'une stratégie de consolidation économique","Analyser la pertinence du positionnement stratégique de la structure au regard de son modèle socio-économique - Identifier les leviers pertinents du modèle économique",null,null,null,2,"Bonne compétence"]
[null,null,null,null,"Gestion et outils financiers","Maîtriser l'accompagnement à la formalisation et à l'appropriation d'outils de comptabilité analytique de budget prévisonnel et de plan de trésorerie",null,null,null,3,"Compétence experte"]
[null,null,null,null,"Total",null,{"$f":"SUM(G10+G11+G12+G13)","v":0}]
[]
[]
[null,null,null,null,"Stratégie globale de la structure"]
[null,null,null,null,"Projet associatif ","Maitriser la formalisation, la définition, l'appropriation du projet associatif par l'ensemble des parties prenantes (salarié.es, adminitrateurs.rices, adhérents.es, bénéficiaires)",null,null,null,0,"Compétence non développée"]
[null,null,null,null,"Projet stratégique ","Identifier les leviers pertinents de possitionnement de la structure\nRepèrer les actions à mener, les conditions de mise en œuvre et les moyens nécessaires (humains, matériels, financiers)",null,null,null,1,"Compétence peu développée"]
[null,null,null,null,"Développement de nouvelles activités","Maîtriser l'étude de faisabilité, la politique tarifaire, l'analyse de la concurrence, la stratégie et l'action commerciale, etc.",null,null,null,2,"Bonne compétence"]
[null,null,null,null," Stratégie de développement","Maîtriser les principales stratégies de développement et leurs pertinences (diversification, duplication, fertilisation, coopération, fusion)",null,null,null,3,"Compétence experte"]
[null,null,null,null,"Total",null,{"$f":"SUM(G18+G19+G20+G21)","v":0}]
[]
[]
[null,null,null,null,"Organisation interne "]
[null,null,null,null,"Gouvernance","Maîtriser les processus décisionnels, schéma de délégation et d'organisation de gouvernance associative et coopérative, relations salariés - élus, etc.",null,null,null,0,"Compétence non développée"]
[null,null,null,null,"Fonction employeur (cadre législatif) ","Maîtriser le cadre législatif et règlementaire de la fonction employeur dans le milieu associatif\nMaîtriser les outils de gestion et de suivi en ressources humaines (salarié.es, bénévoles)",null,null,null,1,"Compétence peu développée"]
[null,null,null,null,"Restructuration organisationnelle","Maîtriser les principes de structuration de la gouvernance et de l'organisation d'une association : articulation entre bénévoles et salariés, répartition des tâches et des responsabilités, etc. ",null,null,null,2,"Bonne compétence"]
[null,null,null,null,"Médiation et gestion de conflits","Maîtriser les démarches de QVCT et déminution des RPS (repérer, accueillir, traiter)",null,null,null,3,"Compétence experte"]
[null,null,null,null,"Total",null,{"$f":"SUM(G26+G27+G28+G29)","v":0}]
[]
[]
[null,null,null,null,"Communication"]
[null,null,null,null,"Stratégie de communication","Maîriser la création d'une stratégie de communication (cible, objectif, message, support)",null,null,null,0,"Compétence non développée"]
[null,null,null,null,"Communication interne","Maîtriser les leviers de communication selon les enjeux internes de la structure",null,null,null,1,"Compétence peu développée"]
[null,null,null,null,"Communication externe","Maîtriser les leviers de communication à destination des partenaires (financiers, opérationnels, etc.)",null,null,null,2,"Bonne compétence"]
[null,null,null,null,"Outillage numérique","Adapter les outils de communication au service de la structure",null,null,null,3,"Compétence experte"]
[null,null,null,null,"Total",null,{"$f":"SUM(G34+G35+G36+G37)","v":0}]
[]
[]
[null,null,null,null,"Stratégie de mutualisation, partenariat, filière"]
[null,null,null,null,"Mutualisation d'emplois","Maîtriser les différentes formes de mutualisation et de coopération",null,null,null,0,"Compétence non développée"]
[null,null,null,null,"Mutualisation de moyens","Maîtriser les différentes formes de mutualisation et de coopération",null,null,null,1,"Compétence peu développée"]
[null,null,null,null,"Rapprochement de structures / Fusion de structures","Maîtriser les essentiels pour enclencher une fusion\nMaîtriser les différentes étapes et formes de fusion",null,null,null,2,"Bonne compétence"]
[null,null,null,null,"Structure de réseau associatif","Maîtriser le fonctionnement des réseaux associatifs - rôles et fonctions des têtes de réseau associative",null,null,null,3,"Compétence experte"]
[null,null,null,null,"Total",null,{"$f":"SUM(G42+G43+G44+G45)","v":0}]
[]
[]
[null,null,null,null,"Numérique"]
[null,null,null,null,"Accompagner à se saisir des opportunités du numérique ","Permettre à la structure de s'aligner sur un vocabulaire numérique commun\nIdentifier les opportunités du numérique au service du projet associatif\nAnticiper les difficultés à surmonter (humaines, techniques, financières, stratégiques)",null,null,null,0,"Compétence non développée"]
[null,null,null,null,"Plan d'actions / Stratégie de tranformation numérique ","Accompagner la structure dans l'identification et la priorisation de chantiers numériques à mener\nAccompagner à la formalisation d'un plan d'actions intégrant les principes de la conduite de changement (nouvelles méthodes de travail interne, référents numériques, budget, évaluation d'impact, etc.)",null,null,null,1,"Compétence peu développée"]
[null,null,null,null,"Appui sur le choix de l'outil numérique adapté","Accompagner la structure dans l'identification de critères de sélection pour les outils pouvant y répondre (adéquation besoins métiers/fonctionnalités, ergonomie, niveau de compléxité, coût, etc.)",null,null,null,2,"Bonne compétence"]
[null,null,null,null,"Total",null,{"$f":"SUM(G50+G51+G52)","v":0},null,null,3,"Compétence experte"]
[]
[]
[null,null,null,null,"Transformation Ecologique"]
[null,null,null,null,"Accompagner à l'émergence de la transformation écologique","Maîtriser les leviers de mobilisation des parties prenantes de la structure autour de la transformation écologique",null,null,null,0,"Compétence non développée"]
[null,null,null,null,"Intégrer la transformation écologique dans les activités de la structure","Maîtriser les leviers d'intégration de la transformation écologique dans les projets associatif et stratégique\nMaîtriser l'évaluation de l'impact écologique des activités de la structure",null,null,null,1,"Compétence peu développée"]
[null,null,null,null,"Modèle économique et transformation écologique","Maîtriser les impacts de la transformation écologique sur le modèle économique des structures\nMaîtriser les leviers d'actions de la transformation écologique sur le modèle économique",null,null,null,2,"Bonne compétence"]
[null,null,null,null,"Total",null,{"$f":"SUM(G57+G59+G58)","v":0},null,null,3,"Compétence experte"]
[]
[]
[null,null,null,null,"Autres compétences"]

{"sheet":"Competences par secteur","index":4,"n_rows":63,"n_cols":26,"rows_kept":63,"cut":false,"hidden":false,"merged":[[7,4,7,5],[59,4,59,5],[48,4,48,5],[37,4,37,5],[45,4,45,5],[52,4,52,5],[13,4,13,5],[21,4,21,5],[8,4,8,5],[16,4,16,5],[24,4,24,5],[32,4,32,5],[40,4,40,5],[63,4,64,5],[29,4,29,5],[55,4,55,5],[62,4,62,5]]}
[]
[]
[null,null,null,null,null,"Selon la même grille de lecture que pour les compétences généralistes, veuillez indiquer vos compétences par secteur d'intervention. Si vous n'intervenez pas dans un secteur, il est inutile de remplir la colonne."]
[]
[]
[]
[null,null,null,null,null,"Compétences",null,null,null,null,null,null,null,null,null,"Secteurs d'intervention"]
[]
[null,null,null,null,"Stratégie économique et financière",null,"Accompagnement des entreprises","Agriculture et alimentation durable","Culture, arts et patrimoine","Economie circulaire","Emploi","Energie","Enfance, jeunesse, famille","Enseignement, éducation","Formation","Gestion et protection de l'environnement","Gestion de l'eau","Habitat durable","Handicap et vieillissement","Lutte contre les exclusions","Mobilité durable","Numérique","Santé","Solidarité internationale","Sport","Tourisme et écotourisme"]
[null,null,null,null,"Maîtrise de la comptabilité analytique","Maîtriser la lecture et l'analyse des documents comptables et financiers"]
[null,null,null,null,"Restructuration économique et financière","Maîtriser et analyser le modèle économique et financier associatif et/ou coopératif - Connaître les différentes typologies des modèles de ressources financières (humaines, activités, financements publics et privés)"]
[null,null,null,null,"Elaboration d'une stratégie de consolidation économique","Analyser la pertinence du positionnement stratégique de la structure au regard de son modèle socio-économique - Identifier les leviers pertinents du modèle économique"]
[null,null,null,null,"Gestion et outils financiers","Maîtriser l'accompagnement à la formalisation et à l'appropriation d'outils de comptabilité analytique de budget prévisonnel et de plan de trésorerie"]
[null,null,null,null,"Total",null,{"$f":"SUM(G10+G11+G12+G13)","v":0},{"$f":"SUM(H10+H11+H12+H13)","v":0},0,0,0,0,0,0,0,0,0,0,0,0,0,0,0,0,0,0]
[]
[]
[null,null,null,null,"Stratégie globale de la structure",null,"Accompagnement des entreprises","Agriculture et alimentation durable","Culture, arts et patrimoine","Economie circulaire","Emploi","Energie","Enfance, jeunesse, famille","Enseignement, éducation","Formation","Gestion et protection de l'environnement","Gestion de l'eau","Habitat durable","Handicap et vieillissement","Lutte contre les exclusions","Mobilité durable","Numérique","Santé","Solidarité internationale","Sport","Tourisme et écotourisme"]
[null,null,null,null,"Projet associatif ","Maitriser la formalisation, la définition, l'appropriation du projet associatif par l'ensemble des parties prenantes (salarié.es, adminitrateurs.rices, adhérents.es, bénéficiaires)"]
[null,null,null,null,"Projet stratégique ","Identifier les leviers pertinents de possitionnement de la structure\nRepèrer les actions à mener, les conditions de mise en œuvre et les moyens nécessaires (humains, matériels, financiers)"]
[null,null,null,null,"Développement de nouvelles activités","Maîtriser l'étude de faisabilité, la politique tarifaire, l'analyse de la concurrence, la stratégie et l'action commerciale, etc."]
[null,null,null,null," Stratégie de développement","Maîtriser les principales stratégies de développement et leurs pertinences (diversification, duplication, fertilisation, coopération, fusion)"]
[null,null,null,null,"Total",null,{"$f":"SUM(G18+G19+G20+G21)","v":0},{"$f":"SUM(H18+H19+H20+H21)","v":0},0,0,0,0,0,0,0,0,0,0,0,0,0,0,0,0,0,0]
[]
[]
[null,null,null,null,"Organisation interne ",null,"Accompagnement des entreprises","Agriculture et alimentation durable","Culture, arts et patrimoine","Economie circulaire","Emploi","Energie","Enfance, jeunesse, famille","Enseignement, éducation","Formation","Gestion et protection de l'environnement","Gestion de l'eau","Habitat durable","Handicap et vieillissement","Lutte contre les exclusions","Mobilité durable","Numérique","Santé","Solidarité internationale","Sport","Tourisme et écotourisme"]
[null,null,null,null,"Gouvernance","Maîtriser les processus décisionnels, schéma de délégation et d'organisation de gouvernance associative et coopérative, relations salariés - élus, etc."]
[null,null,null,null,"Fonction employeur (cadre législatif) ","Maîtriser le cadre législatif et règlementaire de la fonction employeur dans le milieu associatif\nMaîtriser les outils de gestion et de suivi en ressources humaines (salarié.es, bénévoles)"]
[null,null,null,null,"Restructuration organisationnelle","Maîtriser les principes de structuration de la gouvernance et de l'organisation d'une association : articulation entre bénévoles et salariés, répartition des tâches et des responsabilités, etc. "]
[null,null,null,null,"Médiation et gestion de conflits","Maîtriser les démarches de QVCT et déminution des RPS (repérer, accueillir, traiter)"]
[null,null,null,null,"Total",null,{"$f":"SUM(G26+G27+G28+G29)","v":0},{"$f":"SUM(H26+H27+H28+H29)","v":0},0,0,0,0,0,0,0,0,0,0,0,0,0,0,0,0,0,0]
[]
[]
[null,null,null,null,"Communication",null,"Accompagnement des entreprises","Agriculture et alimentation durable","Culture, arts et patrimoine","Economie circulaire","Emploi","Energie","Enfance, jeunesse, famille","Enseignement, éducation","Formation","Gestion et protection de l'environnement","Gestion de l'eau","Habitat durable","Handicap et vieillissement","Lutte contre les exclusions","Mobilité durable","Numérique","Santé","Solidarité internationale","Sport","Tourisme et écotourisme"]
[null,null,null,null,"Stratégie de communication","Maîriser la création d'une stratégie de communication (cible, objectif, message, support)"]
[null,null,null,null,"Communication interne","Maîtriser les leviers de communication selon les enjeux internes de la structure"]
[null,null,null,null,"Communication externe","Maîtriser les leviers de communication à destination des partenaires (financiers, opérationnels, etc.)"]
[null,null,null,null,"Outillage numérique","Adapter les outils de communication au service de la structure"]
[null,null,null,null,"Total",null,{"$f":"SUM(G34+G35+G36+G37)","v":0},{"$f":"SUM(H34+H35+H36+H37)","v":0},0,0,0,0,0,0,0,0,0,0,0,0,0,0,0,0,0,0]
[]
[]
[null,null,null,null,"Stratégie de mutualisation, partenariat, filière",null,"Accompagnement des entreprises","Agriculture et alimentation durable","Culture, arts et patrimoine","Economie circulaire","Emploi","Energie","Enfance, jeunesse, famille","Enseignement, éducation","Formation","Gestion et protection de l'environnement","Gestion de l'eau","Habitat durable","Handicap et vieillissement","Lutte contre les exclusions","Mobilité durable","Numérique","Santé","Solidarité internationale","Sport","Tourisme et écotourisme"]
[null,null,null,null,"Mutualisation d'emplois","Maîtriser les différentes formes de mutualisation et de coopération"]
[null,null,null,null,"Mutualisation de moyens","Maîtriser les différentes formes de mutualisation et de coopération"]
[null,null,null,null,"Rapprochement de structures / Fusion de structures","Maîtriser les essentiels pour enclencher une fusion\nMaîtriser les différentes étapes et formes de fusion"]
[null,null,null,null,"Structure de réseau associatif","Maîtriser le fonctionnement des réseaux associatifs - rôles et fonctions des têtes de réseau associative"]
[null,null,null,null,"Total",null,{"$f":"SUM(G42+G43+G44+G45)","v":0},{"$f":"SUM(H42+H43+H44+H45)","v":0},0,0,0,0,0,0,0,0,0,0,0,0,0,0,0,0,0,0]
[]
[]
[null,null,null,null,"Numérique",null,"Accompagnement des entreprises","Agriculture et alimentation durable","Culture, arts et patrimoine","Economie circulaire","Emploi","Energie","Enfance, jeunesse, famille","Enseignement, éducation","Formation","Gestion et protection de l'environnement","Gestion de l'eau","Habitat durable","Handicap et vieillissement","Lutte contre les exclusions","Mobilité durable","Numérique","Santé","Solidarité internationale","Sport","Tourisme et écotourisme"]
[null,null,null,null,"Accompagner à se saisir des opportunités du numérique ","Permettre à la structure de s'aligner sur un vocabulaire numérique commun\nIdentifier les opportunités du numérique au service du projet associatif\nAnticiper les difficultés à surmonter (humaines, techniques, financières, stratégiques)"]
[null,null,null,null,"Plan d'actions / Stratégie de tranformation numérique ","Accompagner la structure dans l'identification et la priorisation de chantiers numériques à mener\nAccompagner à la formalisation d'un plan d'actions intégrant les principes de la conduite de changement (nouvelles méthodes de travail interne, référents numériques, budget, évaluation d'impact, etc.)"]
[null,null,null,null,"Appui sur le choix de l'outil numérique adapté","Accompagner la structure dans l'identification de critères de sélection pour les outils pouvant y répondre (adéquation besoins métiers/fonctionnalités, ergonomie, niveau de compléxité, coût, etc.)"]
[null,null,null,null,"Total",null,{"$f":"SUM(G50+G51+G52)","v":0},{"$f":"SUM(H50+H51+H52)","v":0},0,0,0,0,0,0,0,0,0,0,0,0,0,0,0,0,0,0]
[]
[]
[null,null,null,null,"Transformation Ecologique",null,"Accompagnement des entreprises","Agriculture et alimentation durable","Culture, arts et patrimoine","Economie circulaire","Emploi","Energie","Enfance, jeunesse, famille","Enseignement, éducation","Formation","Gestion et protection de l'environnement","Gestion de l'eau","Habitat durable","Handicap et vieillissement","Lutte contre les exclusions","Mobilité durable","Numérique","Santé","Solidarité internationale","Sport","Tourisme et écotourisme"]
[null,null,null,null,"Accompagner à l'émergence de la transformation écologique","Maîtriser les leviers de mobilisation des parties prenantes de la structure autour de la transformation écologique"]
[null,null,null,null,"Intégrer la transformation écologique dans les activités de la structure","Maîtriser les leviers d'intégration de la transformation écologique dans les projets associatif et stratégique\nMaîtriser l'évaluation de l'impact écologique des activités de la structure"]
[null,null,null,null,"Modèle économique et transformation écologique","Maîtriser les impacts de la transformation écologique sur le modèle économique des structures\nMaîtriser les leviers d'actions de la transformation écologique sur le modèle économique"]
[null,null,null,null,"Total",null,{"$f":"SUM(G57+G59+G58)","v":0},{"$f":"SUM(H57+H59+H58)","v":0},0,0,0,0,0,0,0,0,0,0,0,0,0,0,0,0,0,0]
[]
[]
[null,null,null,null,"Autres compétences"]

{"sheet":"Expériences","index":5,"n_rows":18,"n_cols":7,"rows_kept":18,"cut":false,"hidden":false,"merged":[[3,0,3,6]]}
[]
[]
[]
["Expériences / Références"]
[]
[]
["Nom / Prénom :"]
[]
["Fonction :"]
[]
["Téléphone :"]
[]
["Email : "]
["Solidarité internationale"]
["Sport"]
["Tourisme social"]
["Autres"]
["Commanditaire (DLA, autre...)","Consultant référent dans votre structure","Année","Durée totale d'intervention","Prestation réalisée (ne pas hésiter à détailler)","Méthodologie et outils utilisés (ne pas hésiter à détailler)","Impact sur la structure"]

{"sheet":"Synthèse","index":6,"n_rows":32,"n_cols":8,"rows_kept":32,"cut":false,"hidden":false,"merged":[[30,6,30,8],[31,6,34,8],[9,7,9,8],[10,7,10,8],[11,7,11,8],[12,7,12,8],[18,7,18,8],[24,7,24,8],[25,7,25,8],[19,7,19,8],[20,7,20,8],[21,7,21,8],[22,7,22,8],[23,7,23,8],[26,7,26,8]]}
[]
[]
[]
[]
[]
[]
[]
[]
[]
[null,null,null,null,null,null,"Nom",{"$f":"Administratif!B20","v":0}]
[null,null,null,null,null,null,"N° SIRET",{"$f":"Administratif!D21","v":0}]
[null,null,null,null,null,null,"Territoires d'intervention",{"$f":"Administratif!B29","v":""}]
[null,null,null,null,null,null,"Formes d'accompagnement (individuel/collectif)",{"$f":"Administratif!D28","v":"Les deux "}]
[]
[]
[]
[]
[]
[null,null,null,null,null,null,"Les compétences thématiques","Niveau de compétences"]
[null,null,null,null,null,null,"Stratégie économique et financière",{"$f":"'Competences généralistes'!$G$14","v":0}]
[null,null,null,null,null,null,"Stratégie globale de la structure",{"$f":"'Competences généralistes'!$G$22","v":0}]
[null,null,null,null,null,null,"Organisation interne ",{"$f":"'Competences généralistes'!$G$30","v":0}]
[null,null,null,null,null,null,"Communication",{"$f":"'Competences généralistes'!$G$38","v":0}]
[null,null,null,null,null,null,"Stratégie de mutualisation, partenariat, filière",{"$f":"'Competences généralistes'!$G$46","v":0}]
[null,null,null,null,null,null,"Numérique",{"$f":"'Competences généralistes'!G53","v":0}]
[null,null,null,null,null,null,"Transformation Ecologique",{"$f":"'Competences généralistes'!$G$60","v":0}]
[null,null,null,null,null,null,"Autres compétences ",{"$f":"'Competences généralistes'!E64","v":0}]
[]
[]
[]
[null,null,null,null,null,null,"Les secteurs d'activité"]
[null,null,null,null,null,null,{"$f":"Secteurs!M11","v":0}]